fUST/lending_fUST_20241109
["ID","MTS","AMOUNT","RATE_DAILY","PERIOD"]
[341699881,1731101447236,-530.51,0.00029637,2]
[341699882,1731101447245,-3200.0,0.00029665,2]
[341699883,1731101447254,-659.67,0.00029696,2]
[341699884,1731101447263,-782.04831152,0.00029732,2]
[341699885,1731101447273,-1000.0,0.00029747,5]
[341699886,1731101447286,-476.84532394,0.00029821,2]
[341699887,1731101447297,-1973.73,0.0002983,2]
[341699888,1731101447313,-500.0,0.0002983,2]
[341699889,1731101447322,-8093.77,0.0002983,2]
[341699890,1731101447331,-5167.66,0.0002983,2]
[341699891,1731101447340,-848.46,0.0002983,2]
[341699892,1731101447349,-950.36,0.0002983,2]
[341699893,1731101447359,-370.833956,0.0002983,2]
[341699894,1731101447368,-500.0,0.0002983,2]
[341699895,1731101447377,-500.0,0.0002983,2]
[341699896,1731101447387,-184.04613327,0.00029831,2]
[341699897,1731101447396,-1500.0,0.00029847,5]
[341699898,1731101447405,-676.06,0.00029864,2]
[341699899,1731101447414,-500.0,0.00029877,2]
[341699900,1731101447423,-952.88,0.000299,2]
[341699901,1731101447432,-150.112233,0.000299,16]
[341699902,1731101447442,-500.0,0.00029911,2]
[341699903,1731101447451,-530.51,0.00029911,2]
[341699904,1731101447461,-3082.36056465,0.00029932,2]
[341699905,1731101447470,-1000.0,0.00029941,2]
[341699906,1731101447480,-659.67,0.0002997,2]
[341699907,1731101447489,-150.01,0.00029998,2]
[341699908,1731101447498,-1025.14574803,0.00029998,2]
[341699909,1731101447507,-7125.69288555,0.0003,30]
[341699910,1731101447516,-64000.0,0.0003,15]
[341699911,1731101447527,-84681.04827475,0.0003,2]
[341699912,1731101447536,-4343.08027619,0.0003,15]
[341699913,1731101447545,-302.14293118,0.0003,2]
[341699914,1731101447554,-252.15616305,0.0003,120]
[341699915,1731101447563,-151.0,0.0003,120]
[341699916,1731101447573,-500.0,0.0003,2]
[341699917,1731101447582,-499.0,0.0003,2]
[341699918,1731101447591,-151.0,0.0003,120]
[341699919,1731101447601,-164.525,0.0003,2]
[341699920,1731101447610,-180.95,0.0003,2]
[341699921,1731101447620,-187.0,0.0003,2]
[341699922,1731101447629,-782.04831152,0.00030007,2]
[341699923,1731101447639,-614.0,0.000301,2]
[341699924,1731101447650,-1973.73,0.00030104,2]
[341699925,1731101447659,-500.0,0.00030104,2]
[341699926,1731101447668,-8093.77,0.00030104,2]
[341699927,1731101447677,-5167.66,0.00030104,2]
[341699928,1731101447687,-848.46,0.00030104,2]
[341699929,1731101447696,-950.36,0.00030104,2]
[341699930,1731101447705,-500.0,0.00030104,2]
[341699931,1731101447715,-154.98957495,0.00030104,2]
[341699932,1731101447724,-211.3891842,0.0003011,30]
[341699933,1731101447734,-211.3891842,0.0003011,30]
[341699934,1731101447743,-211.3891842,0.0003011,30]
[341699935,1731101447753,-211.3891842,0.0003011,30]
[341699936,1731101447762,-303.5547214,0.0003011,30]
[341699937,1731101447771,-211.3891842,0.0003011,30]
[341699938,1731101447780,-303.5547214,0.0003011,30]
[341699939,1731101447790,-211.3891842,0.0003011,30]
[341699940,1731101447799,-211.3891842,0.0003011,30]
[341699941,1731101447809,-204.2982516,0.0003011,30]
[341699942,1731101447819,-303.5547214,0.0003011,30]
[341699943,1731101447828,-303.5547214,0.0003011,30]
[341699944,1731101447837,-871.8759242,0.00030115,2]
[341699945,1731101447845,-500.0,0.00030136,7]
[341699946,1731101447855,-4940.02,0.00030136,120]
[341699947,1731101447863,-242.61808798,0.00030137,2]
[341699948,1731101447872,-151.0,0.00030137,6]
[341699949,1731101447881,-151.0,0.00030137,6]
[341699950,1731101447892,-676.29983796,0.00030138,2]
[341699951,1731101447901,-500.0,0.00030185,2]
[341699952,1731101447910,-530.51,0.00030185,2]
[341699953,1731101447919,-1818.15800191,0.000302,30]
[341699954,1731101447928,-4145.16,0.000302,14]
[341699955,1731101447937,-500.0,0.000302,32]
[341699956,1731101447946,-500.0,0.00030219,3]
[341699957,1731101447955,-659.67,0.00030244,2]
[341699958,1731101447965,-782.04831152,0.00030282,2]
[341699959,1731101447974,-500.0,0.00030293,3]
[341699960,1731101447983,-150.112233,0.000303,20]
[341699961,1731101447992,-1973.73,0.00030378,2]
[341699962,1731101448001,-464.94,0.00030378,2]
[341699963,1731101448010,-8093.77,0.00030378,2]
[341699964,1731101448019,-5167.66,0.00030378,2]
[341699965,1731101448028,-848.46,0.00030378,2]
[341699966,1731101448038,-950.36,0.00030378,2]
[341699967,1731101448047,-500.0,0.00030378,2]
[341699968,1731101448056,-153671.94619876,0.00030383,2]
[341699969,1731101448065,-300.0,0.000304,3]
[341699970,1731101448074,-500.0,0.0003041,2]
[341699971,1731101448084,-823.0,0.00030414,2]
[341699972,1731101448093,-500.0,0.00030459,2]
[341699973,1731101448106,-530.51,0.00030459,2]
[341699974,1731101448115,-659.67,0.00030518,2]
[341699975,1731101448124,-500.0,0.00030557,3]
[341699976,1731101448133,-782.04831152,0.00030558,2]
[341699977,1731101448147,-871.8759242,0.00030615,2]
[341699978,1731101448156,-1000.0,0.00030617,2]
[341699979,1731101448167,-500.0,0.00030629,3]
[341699980,1731101448176,-272.31493533,0.00030638,2]
[341699981,1731101448187,-187.69056683,0.0003065,2]
[341699982,1731101448196,-1973.73,0.00030652,2]
[341699983,1731101448206,-8093.77,0.00030652,2]
[341699984,1731101448215,-5167.66,0.00030652,2]
[341699985,1731101448224,-848.46,0.00030652,2]
[341699986,1731101448234,-950.36,0.00030652,2]
[341699987,1731101448243,-500.0,0.00030652,2]
[341699988,1731101448252,-1500.0,0.00030655,2]
[341699989,1731101448261,-500.0,0.00030673,5]
[341699990,1731101448271,-500.0,0.00030684,2]
[341699991,1731101448280,-771.65,0.000307,14]
[341699992,1731101448289,-1158.49,0.000307,30]
[341699993,1731101448298,-1552.78,0.000307,14]
[341699994,1731101448308,-5000.0,0.00030711,30]
[341699995,1731101448317,-500.0,0.00030733,2]
[341699996,1731101448326,-530.51,0.00030733,2]
[341699997,1731101448335,-500.0,0.00030738,120]
[341699998,1731101448345,-500.0,0.00030738,120]
[341699999,1731101448355,-500.0,0.00030738,120]
[341700000,1731101448364,-500.0,0.00030738,120]
[341700001,1731101448374,-500.0,0.00030738,120]
[341700002,1731101448384,-500.0,0.00030738,120]
[341700003,1731101448395,-500.0,0.00030738,120]
[341700004,1731101448404,-500.0,0.00030738,120]
[341700005,1731101448413,-500.0,0.00030738,120]
[341700006,1731101448422,-500.0,0.00030738,120]
[341700007,1731101448432,-500.0,0.00030738,120]
[341700008,1731101448441,-500.0,0.00030738,120]
[341700009,1731101448450,-500.0,0.00030738,120]
[341700010,1731101448461,-500.0,0.00030738,120]
[341700011,1731101448560,-500.0,0.00030738,120]
[341700012,1731101448583,-500.0,0.00030738,120]
[341700013,1731101448593,-500.0,0.00030738,120]
[341700014,1731101448602,-500.0,0.00030738,120]
[341700015,1731101448613,-500.0,0.00030738,120]
[341700016,1731101448622,-500.0,0.00030738,120]
[341700017,1731101448632,-500.0,0.00030738,120]
[341700018,1731101448642,-500.0,0.00030738,120]
[341700019,1731101448651,-500.0,0.00030738,120]
[341700020,1731101448661,-500.0,0.00030738,120]
[341700021,1731101448670,-500.0,0.00030738,120]
[341700022,1731101448679,-500.0,0.00030738,120]
[341700023,1731101448688,-500.0,0.00030738,120]
[341700024,1731101448698,-500.0,0.00030738,120]
[341700025,1731101448707,-500.0,0.00030738,120]
[341700026,1731101448716,-500.0,0.00030738,120]
[341700027,1731101448725,-500.0,0.00030738,120]
[341700028,1731101448735,-500.0,0.00030738,120]
[341700029,1731101448744,-500.0,0.00030738,120]
[341700030,1731101448753,-500.0,0.00030738,120]
[341700031,1731101448763,-500.0,0.00030738,120]
[341700032,1731101448772,-500.0,0.00030738,120]
[341700033,1731101448782,-500.0,0.00030738,120]
[341700034,1731101448792,-500.0,0.00030738,120]
[341700035,1731101448801,-500.0,0.00030738,120]
[341700036,1731101448810,-500.0,0.00030738,120]
[341700037,1731101448819,-500.0,0.00030738,120]
[341700038,1731101448829,-500.0,0.00030738,120]
[341700039,1731101448838,-500.0,0.00030738,120]
[341700040,1731101448847,-500.0,0.00030738,120]
[341700041,1731101448857,-500.0,0.00030738,120]
[341700042,1731101448866,-500.0,0.00030738,120]
[341700043,1731101448875,-500.0,0.00030738,120]
[341700044,1731101448885,-500.0,0.00030738,120]
[341700045,1731101448895,-500.0,0.00030738,120]
[341700046,1731101448904,-500.0,0.00030738,120]
[341700047,1731101448914,-500.0,0.00030738,120]
[341700048,1731101448923,-500.0,0.00030738,120]
[341700049,1731101448933,-500.0,0.00030738,120]
[341700050,1731101448942,-500.0,0.00030738,120]
[341700051,1731101448951,-500.0,0.00030738,120]
[341700052,1731101448961,-500.0,0.00030738,120]
[341700053,1731101448970,-500.0,0.00030738,120]
[341700054,1731101448979,-500.0,0.00030738,120]
[341700055,1731101448989,-500.0,0.00030738,120]
[341700056,1731101448999,-500.0,0.00030738,120]
[341700057,1731101449008,-500.0,0.00030738,120]
[341700058,1731101449017,-500.0,0.00030738,120]
[341700059,1731101449027,-500.0,0.00030738,120]
[341700060,1731101449036,-500.0,0.00030738,120]
[341700061,1731101449045,-500.0,0.00030738,120]
[341700062,1731101449055,-500.0,0.00030738,120]
[341700063,1731101449064,-500.0,0.00030738,120]
[341700064,1731101449075,-500.0,0.00030738,120]
[341700065,1731101449084,-500.0,0.00030738,120]
[341700066,1731101449093,-500.0,0.00030738,120]
[341700067,1731101449105,-500.0,0.00030738,120]
[341700068,1731101449114,-500.0,0.00030738,120]
[341700069,1731101449123,-500.0,0.00030738,120]
[341700070,1731101449132,-500.0,0.00030738,120]
[341700071,1731101449143,-500.0,0.00030738,120]
[341700072,1731101449152,-500.0,0.00030738,120]
[341700073,1731101449161,-500.0,0.00030738,120]
[341700074,1731101449170,-500.0,0.00030738,120]
[341700075,1731101449180,-500.0,0.00030738,120]
[341700076,1731101449190,-362.62,0.00030738,120]
[341700077,1731101449199,-500.0,0.00030738,120]
[341700078,1731101449209,-500.0,0.00030738,120]
[341700079,1731101449218,-500.0,0.00030738,120]
[341700080,1731101449228,-500.0,0.00030738,120]
[341700081,1731101449237,-500.0,0.00030738,120]
[341700082,1731101449246,-500.0,0.00030738,120]
[341700083,1731101449256,-500.0,0.00030738,120]
[341700084,1731101449265,-500.0,0.00030738,120]
[341700085,1731101449275,-500.0,0.00030738,120]
[341700086,1731101449284,-500.0,0.00030738,120]
[341700087,1731101449293,-500.0,0.00030738,120]
[341700088,1731101449303,-500.0,0.00030738,120]
[341700089,1731101449312,-500.0,0.00030738,120]
[341700090,1731101449325,-500.0,0.00030738,120]
[341700091,1731101449334,-500.0,0.00030738,120]
[341700092,1731101449343,-500.0,0.00030738,120]
[341700093,1731101449353,-500.0,0.00030738,120]
[341700094,1731101449362,-500.0,0.00030738,120]
[341700095,1731101449371,-400.75,0.00030738,120]
[341700096,1731101449380,-500.0,0.00030738,120]
[341700097,1731101449390,-500.0,0.00030738,120]
[341700098,1731101449399,-500.0,0.00030738,120]
[341700099,1731101449408,-500.0,0.00030738,120]
[341700100,1731101449418,-500.0,0.00030738,120]
[341700101,1731101449427,-500.0,0.00030738,120]
[341700102,1731101449435,-500.0,0.00030738,120]
[341700103,1731101449444,-500.0,0.00030738,120]
[341700104,1731101449454,-448.98,0.00030738,120]
[341700105,1731101449463,-158.52871975,0.00030774,2]
[341700106,1731101449474,-659.67,0.00030792,2]
[341700107,1731101449483,-3082.36056465,0.00030796,2]
[341700108,1731101449493,-1000.0,0.0003082,2]
[341700109,1731101449502,-782.04831152,0.00030833,2]
[341700110,1731101449511,-154.7692108,0.00030836,52]
[341700111,1731101449520,-150.44078048,0.00030836,54]
[341700112,1731101449529,-947.0,0.00030836,120]
[341700113,1731101449539,-183.17952198,0.00030836,120]
[341700114,1731101449548,-150.92660522,0.00030836,120]
[341700115,1731101449557,-500.0,0.00030836,120]
[341700116,1731101449566,-500.0,0.00030836,120]
[341700117,1731101449575,-150.28,0.00030836,120]
[341700118,1731101449585,-500.0,0.00030891,3]
[341700119,1731101449594,-1973.73,0.00030926,2]
[341700120,1731101449603,-8093.77,0.00030926,2]
[341700121,1731101449612,-5167.66,0.00030926,2]
[341700122,1731101449622,-848.46,0.00030926,2]
[341700123,1731101449631,-950.36,0.00030926,2]
[341700124,1731101449642,-434.2,0.00030926,2]
[341700125,1731101449651,-151.7773607,0.00030932,30]
[341700126,1731101449661,-422.5912586,0.00030932,30]
[341700127,1731101449670,-500.0,0.00030958,2]
[341700128,1731101449680,-1009.59,0.00030958,14]
[341700129,1731101449689,-1009.59,0.00030958,14]
[341700130,1731101449698,-1009.59,0.00030958,14]
[341700131,1731101449707,-1009.59,0.00030958,14]
[341700132,1731101449716,-1009.59,0.00030958,14]
[341700133,1731101449725,-1009.59,0.00030958,14]
[341700134,1731101449734,-1009.59,0.00030958,14]
[341700136,1731101449743,-1009.59,0.00030958,14]
[341700137,1731101449752,-1009.59,0.00030958,14]
[341700138,1731101449762,-1009.59,0.00030958,14]
[341700139,1731101449771,-1009.59,0.00030958,14]
[341700140,1731101449780,-1009.59,0.00030958,14]
[341700141,1731101449789,-1009.59,0.00030958,14]
[341700142,1731101449798,-1009.59,0.00030958,14]
[341700143,1731101449809,-1009.59,0.00030958,14]
[341700144,1731101449820,-1009.59,0.00030958,14]
[341700145,1731101449828,-1009.59,0.00030958,14]
[341700146,1731101449837,-1009.59,0.00030958,14]
[341700147,1731101449849,-1009.59,0.00030958,14]
[341700148,1731101449859,-1009.59,0.00030958,14]
[341700149,1731101449869,-1009.59,0.00030958,14]
[341700150,1731101449880,-1009.59,0.00030958,14]
[341700151,1731101449894,-1009.59,0.00030958,14]
[341700152,1731101449907,-1009.65,0.00030958,14]
[341700153,1731101449920,-500.0,0.00030961,3]
[341700154,1731101449933,-5000.0,0.00031,30]
[341700155,1731101449945,-1000.0,0.00031,120]
[341700156,1731101449955,-4909.00435836,0.00031,10]
[341700157,1731101449968,-180373.43654593,0.00031,15]
[341700158,1731101449979,-4000.0,0.00031,2]
[341700159,1731101449991,-538.0,0.00031,14]
[341700160,1731101450003,-1826.37226301,0.00031,30]
[341700161,1731101450017,-374.44734826,0.00031,2]
[341700162,1731101450028,-2800.0,0.00031,30]
[341700163,1731101450041,-1000.1,0.00031,7]
[341700164,1731101450052,-1000.0,0.00031,2]
[341700165,1731101450064,-4590.41,0.00031,30]
[341700166,1731101450076,-4145.16,0.00031,14]
[341700167,1731101450090,-1000.0,0.00031,2]
[341700168,1731101450105,-1000.0,0.00031,2]
[341700169,1731101450117,-1032.8894,0.00031,2]
[341700170,1731101450128,-1733.91582387,0.00031,120]
[341700171,1731101450140,-8000.0,0.00031,120]
[341700172,1731101450153,-527.0,0.00031,2]
[341700173,1731101450165,-1000.0,0.00031,2]
[341700174,1731101450177,-1009.9529,0.00031,2]
[341700175,1731101450189,-500.0,0.00031007,2]
[341700176,1731101450201,-530.51,0.00031007,2]
[341700177,1731101450211,-500.0,0.00031027,3]
[341700178,1731101450221,-1555.70899578,0.0003103,50]
[341700179,1731101450235,-1000.0,0.00031057,2]
[341700180,1731101450247,-18439.52298449,0.0003106,2]
[341700181,1731101450258,-659.67,0.00031066,2]
[341700182,1731101450269,-4940.02,0.00031095,120]
[341700183,1731101450280,-782.04831152,0.00031108,2]
[341700184,1731101450292,-947.0,0.0003111,120]
[341700185,1731101450303,-161.62498725,0.0003111,120]
[341700186,1731101450315,-507.80212348,0.0003111,120]
[341700187,1731101450326,-500.0,0.0003111,120]
[341700188,1731101450338,-871.8759242,0.00031115,2]
[341700189,1731101450351,-1000.0,0.00031125,2]
[341700190,1731101450364,-200.0,0.000312,120]
[341700191,1731101450374,-500.0,0.000312,35]
[341700192,1731101450384,-1973.73,0.000312,2]
[341700193,1731101450395,-8093.77,0.000312,2]
[341700194,1731101450408,-5167.66,0.000312,2]
[341700195,1731101450418,-848.46,0.000312,2]
[341700196,1731101450429,-950.36,0.000312,2]
[341700197,1731101450440,-500.0,0.0003122,3]
[341700198,1731101450453,-500.0,0.00031232,2]
[341700199,1731101450464,-500.0,0.00031232,10]
[341700200,1731101450476,-24384.34283298,0.00031245,120]
[341700201,1731101450486,-160.0,0.00031249,3]
[341700202,1731101450497,-160.0,0.00031249,5]
[341700203,1731101450507,-500.0,0.00031281,2]
[341700204,1731101450517,-530.51,0.00031281,2]
[341700205,1731101450529,-500.0,0.0003129,3]
[341700206,1731101450541,-659.67,0.0003134,2]
[341700207,1731101450552,-617.21900553,0.00031346,55]
[341700208,1731101450562,-782.04831152,0.00031383,2]
[341700209,1731101450572,-200.0,0.00031384,120]
[341700210,1731101450582,-947.0,0.00031384,120]
[341700211,1731101450592,-500.0,0.00031384,120]
[341700212,1731101450603,-152.0,0.000314,120]
[341700213,1731101450613,-300.0,0.000314,4]
[341700214,1731101450624,-1000.0,0.00031432,2]
[341700215,1731101450635,-42661.08352752,0.00031439,2]
[341700216,1731101450646,-1973.73,0.00031474,2]
[341700217,1731101450656,-8093.77,0.00031474,2]
[341700218,1731101450667,-5167.66,0.00031474,2]
[341700219,1731101450677,-848.46,0.00031474,2]
[341700220,1731101450687,-950.36,0.00031474,2]
[341700221,1731101450698,-301767.4326748,0.000315,2]
[341700222,1731101450708,-500.0,0.00031506,2]
[341700223,1731101450719,-1000.0,0.00031506,30]
[341700224,1731101450730,-1000.0,0.00031506,30]
[341700225,1731101450741,-1000.0,0.00031506,30]
[341700226,1731101450751,-1000.0,0.00031506,30]
[341700227,1731101450762,-945.44516359,0.00031506,30]
[341700228,1731101450772,-1000.0,0.0003154,2]
[341700229,1731101450782,-500.0,0.00031546,3]
[341700230,1731101450792,-167.917135,0.00031546,2]
[341700231,1731101450803,-246.55,0.00031555,2]
[341700232,1731101450813,-530.51,0.00031555,2]
[341700233,1731101450824,-1435.74495413,0.00031578,6]
[341700234,1731101450835,-500.0,0.00031614,3]
[341700235,1731101450845,-659.67,0.00031614,2]
[341700236,1731101450855,-871.8759242,0.00031615,2]
[341700237,1731101450866,-947.0,0.00031658,120]
[341700238,1731101450877,-500.0,0.00031658,120]
[341700239,1731101450888,-782.04831152,0.00031658,2]
[341700240,1731101450898,-3082.36056465,0.00031659,2]
[341700241,1731101450908,-1435.0,0.00031678,12]
[341700242,1731101450919,-1000.0,0.00031699,2]
[341700243,1731101450929,-500.0,0.000317,14]
[341700244,1731101450939,-150.112233,0.000317,13]
[341700245,1731101450950,-772.2074,0.000317,2]
[341700246,1731101450961,-823.0,0.00031726,2]
[341700247,1731101450971,-151.0,0.00031726,120]
[341700248,1731101450981,-1000.0,0.00031732,2]
[341700249,1731101450991,-3200.0,0.00031745,30]
[341700250,1731101451002,-1973.73,0.00031748,2]
[341700251,1731101451013,-8093.77,0.00031748,2]
[341700252,1731101451023,-5167.66,0.00031748,2]
[341700253,1731101451033,-848.46,0.00031748,2]
[341700254,1731101451044,-950.36,0.00031748,2]
[341700255,1731101451054,-159.054,0.00031753,120]
[341700256,1731101451064,-716.85932159,0.00031759,7]
[341700257,1731101451075,-716.85932159,0.00031759,7]
[341700258,1731101451085,-709026.81509627,0.00031759,10]
[341700259,1731101451180,-2433.8289,0.00031759,10]
[341700260,1731101451192,-19794.40078273,0.00031759,10]
[341700261,1731101451204,-832.54212392,0.00031759,10]
[341700262,1731101451268,-500.21413396,0.000302,3]
[341700264,1731101499431,167.53344,0.00013973,2]
[341700269,1731101634446,694.44444444,0.00020843,2]
[341700272,1731101947320,694.44444444,0.00020843,2]
[341700278,1731102203500,167.852941,0.00013973,2]
[341700279,1731102259136,694.44444444,0.00020843,2]
[341700294,1731102570632,694.44444444,0.00020843,2]
[341700319,1731102632489,-552.0,0.00020986,2]
[341700320,1731102632501,-297.8162796,0.00020986,2]
[341700321,1731102632510,-136.09079839,0.00020998,2]
[341700322,1731102632522,-558.35364605,0.00020998,2]
[341700323,1731102632534,-300.0,0.00020998,2]
[341700325,1731102632543,-300.0,0.00020998,2]
[341700327,1731102632552,-318.55655272,0.00020999,2]
[341700344,1731102638583,-694.44444444,0.00020967,2]
[341700345,1731102638592,-24581.44344728,0.00020999,2]
[341700346,1731102638602,-256.70924811,0.00021817,2]
[341700347,1731102638613,-570.63177833,0.000219,2]
[341700348,1731102638624,-231.18214781,0.00021917,2]
[341700349,1731102638633,-750.74074374,0.00021917,2]
[341700350,1731102638642,-168.34652908,0.00021917,2]
[341700351,1731102638652,-500.0,0.00021917,2]
[341700352,1731102638661,-503.29034906,0.00021917,2]
[341700353,1731102638671,-500.0,0.00021917,2]
[341700354,1731102638680,-500.0,0.00021917,2]
[341700355,1731102638689,-500.0,0.00021917,2]
[341700356,1731102638698,-511.55255675,0.00021917,2]
[341700357,1731102638707,-500.0,0.00021917,2]
[341700358,1731102638716,-500.0,0.00021917,2]
[341700359,1731102638725,-500.0,0.00021917,2]
[341700360,1731102638735,-500.0,0.00021917,2]
[341700361,1731102638744,-506.34619409,0.00021917,2]
[341700363,1731102638753,-500.0,0.00021917,2]
[341700365,1731102638762,-500.0,0.00021917,2]
[341700367,1731102638771,-500.0,0.00021917,2]
[341700369,1731102638780,-191.58054379,0.00021917,2]
[341700371,1731102638789,-507.27415853,0.00021917,2]
[341700373,1731102638799,-500.0,0.00021917,2]
[341700375,1731102638807,-2336.0,0.00021917,2]
[341700377,1731102638816,-301.89974264,0.00021917,2]
[341700378,1731102638826,-500.0,0.00021917,2]
[341700379,1731102638835,-500.0,0.00021917,2]
[341700380,1731102638845,-500.0,0.00021917,2]
[341700381,1731102638855,-500.0,0.00021917,2]
[341700382,1731102638866,-500.0,0.00021917,2]
[341700383,1731102638874,-500.0,0.00021917,2]
[341700384,1731102638883,-500.0,0.00021917,2]
[341700385,1731102638892,-500.0,0.00021917,2]
[341700386,1731102638901,-500.0,0.00021917,2]
[341700387,1731102638911,-500.0,0.00021917,2]
[341700388,1731102638920,-500.0,0.00021917,2]
[341700389,1731102638929,-500.0,0.00021917,2]
[341700390,1731102638938,-500.0,0.00021917,2]
[341700391,1731102638947,-525.1208139,0.00021917,2]
[341700392,1731102638956,-507.63556111,0.00021917,2]
[341700393,1731102638965,-500.0,0.00021917,2]
[341700394,1731102638974,-528.64060709,0.00021917,2]
[341700395,1731102638983,-500.0,0.00021917,2]
[341700396,1731102638992,-502.03908773,0.00021917,2]
[341700397,1731102639002,-500.0,0.00021917,2]
[341700398,1731102639011,-500.0,0.00021917,2]
[341700399,1731102639020,-500.0,0.00021917,2]
[341700400,1731102639030,-209.84903061,0.00021917,2]
[341700401,1731102639039,-623.81322091,0.00021917,2]
[341700402,1731102639049,-500.0,0.00021917,2]
[341700403,1731102639058,-500.0,0.00021917,2]
[341700404,1731102639068,-500.0,0.00021917,2]
[341700405,1731102639077,-500.0,0.00021917,2]
[341700406,1731102639086,-500.0,0.00021917,2]
[341700407,1731102639095,-500.0,0.00021917,2]
[341700408,1731102639105,-500.0,0.00021917,2]
[341700409,1731102639114,-500.0,0.00021917,2]
[341700410,1731102639126,-166.886877,0.00021918,2]
[341700411,1731102639135,-203.11386849,0.00022191,2]
[341700412,1731102639144,-500.0,0.00022191,2]
[341700413,1731102639154,-500.0,0.00022191,2]
[341700414,1731102639163,-500.0,0.00022191,2]
[341700415,1731102639172,-500.0,0.00022191,2]
[341700416,1731102639182,-500.0,0.00022191,2]
[341700417,1731102639192,-544.98263759,0.00022191,2]
[341700418,1731102639201,-500.0,0.00022191,2]
[341700419,1731102639211,-249.7360998,0.00022228,2]
[341700420,1731102639219,-500.0,0.00022465,2]
[341700421,1731102639229,-500.0,0.00022465,2]
[341700422,1731102639238,-500.0,0.00022465,2]
[341700423,1731102639247,-473.9381,0.00022739,2]
[341700424,1731102639257,-500.0,0.00022739,2]
[341700425,1731102639266,-500.0,0.00022739,2]
[341700426,1731102639275,-166.886877,0.00022773,2]
[341700427,1731102639284,-420.0,0.00022842,2]
[341700428,1731102639294,-500.0,0.00023013,2]
[341700429,1731102639303,-500.0,0.00023013,2]
[341700430,1731102639312,-420.0,0.00023098,2]
[341700431,1731102639322,-246.703337,0.00023216,2]
[341700432,1731102639331,-256.70924809,0.00023219,2]
[341700433,1731102639340,-500.0,0.00023262,2]
[341700434,1731102639350,-500.0,0.00023287,2]
[341700435,1731102639360,-500.0,0.00023287,2]
[341700436,1731102639371,-500.0,0.00023561,2]
[341700437,1731102639380,-500.0,0.00023561,2]
[341700438,1731102639389,-166.886877,0.00023627,2]
[341700439,1731102639398,-500.0,0.000237,2]
[341700440,1731102639407,-500.0,0.00023835,2]
[341700441,1731102639416,-500.0,0.00023835,2]
[341700442,1731102639426,-500.0,0.00023836,2]
[341700443,1731102639437,-500.0,0.00023836,2]
[341700444,1731102639446,-500.0,0.00023837,2]
[341700445,1731102639455,-500.0,0.00023837,2]
[341700446,1731102639464,-523.76164326,0.00023837,2]
[341700447,1731102639474,-500.0,0.00023837,2]
[341700448,1731102639484,-500.0,0.00023837,2]
[341700449,1731102639495,-250.0,0.00023837,2]
[341700450,1731102639504,-500.0,0.00023837,2]
[341700451,1731102639514,-500.0,0.00023837,2]
[341700452,1731102639523,-500.0,0.00023837,2]
[341700453,1731102639533,-507.70238262,0.00023837,2]
[341700454,1731102639545,-500.0,0.00023837,2]
[341700455,1731102639555,-500.0,0.00023837,2]
[341700456,1731102639564,-500.0,0.00023837,2]
[341700457,1731102639575,-274.24845229,0.00023837,2]